lending/lending_fUSD_20240130
["ID","MTS","AMOUNT","RATE_DAILY","PERIOD"]
[313010777,1706610639401,-500.0,0.0004095,7]
[313010778,1706610639411,-235.08,0.0004095,7]
[313010779,1706610639421,-500.0,0.0004095,7]
[313010780,1706610639431,-1910.961,0.00040965,120]
[313010781,1706610639441,-799.49662461,0.00040965,15]
[313010782,1706610639452,-837339.63694399,0.00040965,3]
[313010783,1706610639461,-78535.5900628,0.00040966,7]
[313010784,1706610639470,-5000.0,0.00040976,3]
[313010785,1706610639479,-152.19546769,0.00040976,10]
[313010786,1706610639488,-156.90435776,0.00040996,2]
[313010787,1706610639497,-299.14144161,0.00040996,33]
[313010788,1706610639506,-1500.0,0.00041,3]
[313010789,1706610639515,-61315.0,0.00041014,4]
[313010790,1706610639524,-392677.950314,0.00041055,8]
[313010791,1706610639534,-1087.30297251,0.00041058,13]
[313010792,1706610639543,-12571.59932384,0.00041065,2]
[313010793,1706610639551,-2479.0,0.00041068,4]
[313010794,1706610639560,-156.51452915,0.00041076,2]
[313010795,1706610639569,-636.15843273,0.00041092,4]
[313010796,1706610639578,-10773.9262795,0.00041092,5]
[313010797,1706610639587,-194.56227551,0.00041093,2]
[313010798,1706610639597,-14310.15612621,0.00041095,4]
[313010799,1706610639606,-404.20253204,0.00041095,31]
[313010800,1706610639616,-500.0,0.00041095,31]
[313010801,1706610639625,-500.0,0.00041095,31]
[313010802,1706610639634,-500.0,0.00041095,31]
[313010803,1706610639643,-183.6801966,0.00041095,31]
[313010804,1706610639652,-1200.0,0.00041096,2]
[313010805,1706610639662,-610536.71,0.00041096,2]
[313010806,1706610639671,-150.0,0.00041096,2]
[313010807,1706610639680,-6435.29897071,0.00041096,2]
[313010808,1706610639689,-500.0,0.00041096,7]
[313010809,1706610639699,-300.724785,0.00041096,14]
[313010810,1706610639708,-300.724785,0.00041096,14]
[313010811,1706610639718,-151.0,0.00041096,14]
[313010812,1706610639727,-151.0,0.00041096,14]
[313010813,1706610639737,-151.0,0.00041096,14]
[313010814,1706610639746,-151.0,0.00041096,14]
[313010815,1706610639755,-151.0,0.00041096,2]
[313010816,1706610639765,-151.0,0.00041096,2]
[313010817,1706610639775,-601.04064,0.00041096,7]
[313010818,1706610639784,-192.19062057,0.00041096,14]
[313010819,1706610639794,-151.0,0.00041096,14]
[313010820,1706610639803,-151.0,0.00041096,14]
[313010821,1706610639813,-151.0,0.00041096,14]
[313010822,1706610639822,-1000.0,0.000411,2]
[313010823,1706610639831,-2327.90896649,0.00041349,2]
[313010824,1706610639841,-426.66,0.0004146,7]
[313010825,1706610639850,-857.66124895,0.00041527,3]
[313010826,1706610639860,-475.0,0.0004156,7]
[313010827,1706610639869,-151.0,0.00041749,14]
[313010828,1706610639879,-300.724785,0.00041749,14]
[313010829,1706610639889,-300.724785,0.00041749,14]
[313010830,1706610639899,-150.0,0.00041757,3]
[313010831,1706610639908,-150.0,0.00041757,3]
[313010832,1706610639919,-500000.0,0.00041758,100]
[313010833,1706610639928,-151.0,0.00041758,14]
[313010834,1706610639940,-151.0,0.00041758,14]
[313010835,1706610639950,-151.0,0.00041758,14]
[313010836,1706610639959,-151.0,0.00041758,14]
[313010837,1706610639969,-151.0,0.00041758,2]
[313010838,1706610639979,-151.0,0.00041758,2]
[313010839,1706610639988,-151.0,0.00041758,14]
[313010840,1706610639998,-151.0,0.00041758,14]
[313010841,1706610640007,-151.0,0.00041758,14]
[313010842,1706610640017,-799.49662458,0.00041775,16]
[313010843,1706610640028,-1706.64,0.000418,7]
[313010844,1706610640039,-42416.52848,0.0004188,2]
[313010845,1706610640050,-3000.0,0.000419,33]
[313010847,1706610640059,-306.794346,0.000419,15]
[313010848,1706610640069,-1978.094055,0.000419,15]
[313010849,1706610640078,-1026.647836,0.000419,30]
[313010850,1706610640088,-332.479377,0.000419,5]
[313010851,1706610640098,-1071.78554894,0.00041904,4]
[313010852,1706610640107,-5694.709252,0.0004191,33]
[313010853,1706610640122,-3305.32624244,0.00041934,2]
[313010854,1706610640132,-200.0,0.00041935,2]
[313010855,1706610640141,-150.0,0.00041941,30]
[313010856,1706610640151,-772.6992403,0.00041942,2]
[313010857,1706610640161,-2506.5745256,0.00041942,2]
[313010858,1706610640170,-667.0559435,0.00041942,2]
[313010859,1706610640180,-194.56227551,0.00041968,2]
[313010860,1706610640189,-44370.5568641,0.00041971,2]
[313010861,1706610640199,-4814.0,0.0004199,2]
[313010862,1706610640208,-2195.0,0.0004199,2]
[313010863,1706610640219,-27021.70808652,0.00042,30]
[313010864,1706610640228,-20000.0,0.00042,4]
[313010865,1706610640239,-699.4502294,0.00042029,2]
[313010866,1706610640250,-626.2012186,0.00042029,2]
[313010867,1706610640260,-552.9522077,0.00042029,2]
[313010868,1706610640270,-479.7031969,0.00042029,2]
[313010869,1706610640279,-40164.3932865,0.00042029,2]
[313010870,1706610640288,-35958.2297089,0.00042029,2]
[313010871,1706610640298,-31752.0661313,0.00042029,2]
[313010872,1706610640307,-27545.9025537,0.00042029,2]
[313010873,1706610640316,-2266.9811006,0.00042029,2]
[313010874,1706610640325,-2027.3876756,0.00042029,2]
[313010875,1706610640334,-1787.7942507,0.00042029,2]
[313010876,1706610640344,-1548.2008257,0.00042029,2]
[313010877,1706610640353,-603.2947361,0.0004203,2]
[313010878,1706610640362,-539.5335287,0.0004203,2]
[313010879,1706610640371,-475.7723214,0.0004203,2]
[313010880,1706610640380,-412.011114,0.0004203,2]
[313010881,1706610640390,-151.0,0.00042049,14]
[313010882,1706610640399,-151.0,0.00042049,14]
[313010883,1706610640408,-151.0,0.00042049,14]
[313010884,1706610640418,-300.724785,0.00042049,14]
[313010885,1706610640427,-300.724785,0.00042049,14]
[313010886,1706610640436,-300.724785,0.00042049,14]
[313010887,1706610640445,-300.724785,0.00042049,14]
[313010888,1706610640455,-300.724785,0.00042049,14]
[313010889,1706610640464,-300.724785,0.00042049,14]
[313010890,1706610640474,-150.0,0.00042057,3]
[313010891,1706610640484,-150.0,0.00042057,3]
[313010892,1706610640493,-150.0,0.00042057,3]
[313010893,1706610640502,-150.0,0.00042057,3]
[313010894,1706610640511,-150.0,0.00042057,3]
[313010895,1706610640689,-150.0,0.00042057,3]
[313010896,1706610640698,-150.0,0.00042057,3]
[313010897,1706610640707,-150.0,0.00042057,3]
[313010898,1706610640717,-150.0,0.00042057,3]
[313010899,1706610640726,-150.0,0.00042057,3]
[313010900,1706610640735,-12571.59932384,0.00042058,2]
[313010901,1706610640745,-1799.59331181,0.00042058,120]
[313010902,1706610640754,-258.01043,0.00042058,30]
[313010903,1706610640764,-290.15964409,0.00042058,30]
[313010904,1706610640773,-225.27504601,0.00042058,30]
[313010905,1706610640783,-483.51077893,0.00042058,30]
[313010906,1706610640792,-9814.1054938,0.00042058,60]
[313010907,1706610640801,-9443.42239579,0.00042058,120]
[313010908,1706610640810,-37943.9009703,0.00042058,120]
[313010909,1706610640819,-18068.86553423,0.00042058,30]
[313010910,1706610640829,-459397.15988617,0.00042058,120]
[313010911,1706610640838,-228495.50314245,0.00042058,120]
[313010912,1706610640848,-282.0,0.00042058,120]
[313010913,1706610640857,-1000000.0,0.00042058,30]
[313010914,1706610640866,-490000.0,0.00042058,60]
[313010915,1706610640875,-1261833.58276293,0.00042058,120]
[313010916,1706610640890,-442.7233674,0.00042058,120]
[313010917,1706610640901,-751.70837817,0.00042058,120]
[313010950,1706610641509,-151.0,0.00042058,14]
[313010951,1706610641518,-151.0,0.00042058,14]
[313010952,1706610641527,-151.0,0.00042058,14]
[313010953,1706610641538,-151.0,0.00042058,14]
[313010954,1706610641548,-151.0,0.00042058,14]
[313010955,1706610641557,-153.699321,0.00042058,14]
[313010956,1706610641566,-46.11564557,0.00042058,14]
[313010957,1706610641578,-104.88435443,0.00042058,14]
[313010958,1706610641587,-151.0,0.00042058,14]
[313010959,1706610641596,-151.0,0.00042058,14]
[313010960,1706610641605,-151.0,0.00042058,14]
[313010961,1706610641614,-151.0,0.00042058,14]
[313010962,1706610641625,-151.0,0.00042058,14]
[313010963,1706610641636,-151.0,0.00042058,2]
[313010964,1706610641646,-151.0,0.00042058,2]
[313010965,1706610641657,-151.0,0.00042058,2]
[313010966,1706610641666,-242.859457,0.00042058,2]
[313010967,1706610641675,-151.0,0.00042058,14]
[313010968,1706610641685,-151.0,0.00042058,14]
[313010969,1706610641694,-102.55060778,0.00042058,14]
[313010970,1706610641779,-48.44939222,0.00042058,14]
[313010971,1706610641788,-290.468634,0.00042058,14]
[313010972,1706610641798,-151.0,0.00042058,14]
[313010973,1706610641808,-151.0,0.00042058,14]
[313010974,1706610641817,-151.0,0.00042058,14]
[313010975,1706610641828,-1340.52897378,0.00042058,120]
[313010976,1706610641841,-860.48638546,0.00042058,120]
[313010977,1706610641858,-4335.1,0.00042058,120]
[313010983,1706610642603,-260.394211,0.00040865,2]
[313010984,1706610642613,-171.42703863,0.00042058,120]
[313010985,1706610642820,-992.36817991,0.00042058,120]
[313010986,1706610642931,-328.39001,0.00042058,120]
[313010989,1706610645628,-402.0,0.00042058,7]
[313010990,1706610645637,-42178.00000003,0.00042058,120]
[313010991,1706610645649,-253.80573163,0.00042058,120]
[313010992,1706610645660,-4346.175,0.00042058,120]
[313010993,1706610645682,-56263.03199999,0.00042058,120]
[313010994,1706610645740,-1187.7368843,0.00042058,120]
[313010995,1706610645751,-606.95169951,0.00042058,120]
[313010996,1706610645763,-2308.1,0.00042058,120]
[313011000,1706610645800,-560.52287682,0.00042058,120]
[313011002,1706610645821,-579770.87803646,0.00042058,120]
[313011003,1706610645833,-131332.59467498,0.00042058,120]
[313011004,1706610645842,-67621.61739756,0.00042058,120]
[313011005,1706610645857,-585.99,0.00042058,120]
[313011006,1706610645914,-530.20546876,0.00042058,120]
[313011007,1706610645926,-1300.65,0.00042058,120]
[313011008,1706610645939,-25043.626606,0.00042058,120]
[313011009,1706611628101,-336.75057121,0.00022699,2]
[313011010,1706611638082,-154.48402385,0.00022699,2]
[313011014,1706611831884,-42.32686302,0.00022699,2]
[313011016,1706611831893,-150.0,0.00022699,2]
[313011018,1706611831903,-177.70882694,0.000227,2]
[313011019,1706611831912,-68.70319162,0.000227,2]
[313011020,1706611832043,-418.34310838,0.000227,2]
[313011021,1706611832054,-336.74741291,0.00022799,2]
[313011022,1706611832064,-3629.9431,0.000228,2]
[313011023,1706611832074,-24793.08381133,0.000228,2]
[313011024,1706611832085,-7354.72394105,0.000228,2]
[313011025,1706611832097,-3320.74165696,0.000228,2]
[313011026,1706611832112,-46080.12642778,0.000228,2]
[313011027,1706611832125,-312.06068321,0.000228,2]
[313011028,1706611832136,-381.79850293,0.000228,2]
[313011029,1706611832148,-2714.69407762,0.000228,2]
[313011030,1706611832167,-793.80461374,0.000228,2]
[313011031,1706611832179,-1448.7530309,0.000228,2]
[313011032,1706611832190,-459.2369133,0.000228,2]
[313011033,1706611832221,-1496.61094832,0.000228,2]
[313011034,1706611832232,-359.03835404,0.000228,2]
[313011038,1706611837840,-1769.61381994,0.000228,2]
[313011039,1706611837897,-2938.98929148,0.000228,2]
[313011040,1706611837910,-350.3328274,0.000228,2]
[313011041,1706611837919,-696.29536473,0.000228,2]
[313011042,1706611837933,-303.70463527,0.000228,2]
[313011043,1706611837944,-210.0,0.00024969,2]
[313011044,1706611837954,-444.89898447,0.00025,2]
[313011045,1706611837963,-47.07919581,0.00025,3]
[313011046,1706611837975,-502.92080419,0.00025,3]
[313011047,1706611837985,-150.9,0.00027397,2]
[313011048,1706611837995,-132.14675236,0.000299,6]
[313011049,1706611838217,-52.01111415,0.000299,6]
[313011050,1706611838227,-4833.0,0.000299,2]
[313011051,1706611838237,-6221.15378256,0.000299,2]
[313011052,1706611838325,-9744.40851744,0.000299,2]
[313011053,1706611838336,-2184.0,0.000299,2]
[313011054,1706611838345,-19362.10016045,0.0003,2]
[313011055,1706611838357,-167219.40036688,0.0003,2]
[313011056,1706611838367,-155.0,0.0003,2]
[313011057,1706611838377,-999.99,0.0003,2]
[313011058,1706611838386,-150.9,0.00030137,2]
[313011059,1706611838396,-2265.81,0.00030137,2]
[313011060,1706611838405,-349.18,0.00030623,2]
[313011061,1706611838415,-1388.653,0.00032397,2]
[313011062,1706611838424,-2459.799,0.00032397,2]
[313011063,1706611838434,-389.617,0.00032397,2]
[313011064,1706611838444,-455.236,0.00032397,2]
[313011065,1706611838453,-1405.868,0.00032397,2]
[313011066,1706611838462,-843.0,0.00032397,2]
[313011067,1706611838471,-953.484,0.00032397,2]
[313011068,1706611838481,-1867.491,0.00032397,2]
[313011069,1706611838490,-286.81,0.00032397,2]
[313011070,1706611838503,-1249.0,0.00032397,2]
[313011071,1706611838512,-1233.0,0.00032397,2]
[313011072,1706611838522,-233.367,0.00032397,2]
[313011073,1706611838531,-529.0,0.00032397,2]
[313011074,1706611838542,-450.661,0.00032397,2]
[313011075,1706611838551,-1940.0,0.00032397,2]
[313011076,1706611838561,-73.29210419,0.00032397,2]
[313011077,1706611838578,-446.04655466,0.00032397,2]
[313011078,1706611838590,-480.66134115,0.00032397,2]
[313011079,1706611838600,-365.36946185,0.00032397,2]
[313011080,1706611838856,-232.19753815,0.00032397,2]
[313011081,1706611838866,-241.664,0.00032397,2]
[313011082,1706611838875,-446.251,0.00032397,2]
[313011083,1706611838884,-191.2886288,0.00032397,2]
[313011084,1706611838896,-263.85947574,0.00032397,2]
[313011111,1706611840408,-682.85189546,0.00032397,2]
[313011112,1706611840419,-821.10146332,0.00032397,2]
[313011113,1706611840462,-121.09853668,0.00032397,2]
[313011114,1706611840472,-151.021,0.00032397,2]
[313011115,1706611840482,-481.56046012,0.00032397,2]
[313011116,1706611840517,-3323.20790079,0.00032397,2]
[313011117,1706611840529,-640.041,0.00032397,2]
[313011118,1706611841185,-2929.19063909,0.00032397,2]
[313011119,1706611841196,-2912.0,0.00032397,2]
[313011120,1706611841207,-4208.767,0.00032397,2]
[313011121,1706611841219,-8120.0,0.00032397,2]
[313011122,1706611841229,-239.377,0.00032397,2]
[313011123,1706611841239,-19852.306,0.00032397,2]
[313011124,1706611841249,-5618.551,0.00032397,2]
[313011125,1706611841260,-2279.0,0.00032397,2]
[313011126,1706611841271,-1032.0,0.00032397,2]
[313011128,1706611841281,-702.47,0.00032653,2]
[313011130,1706611841290,-150.9,0.00032877,2]
[313011132,1706611841301,-1390.81,0.00032971,2]
[313011134,1706611841311,-152.58,0.00033153,2]
[313011136,1706611841321,-191.95,0.00033624,2]
[313011138,1706611841330,-702.47,0.00033861,2]
[313011141,1706611841345,-154.56,0.00033959,2]
[313011143,1706611841355,-152.58,0.00034017,2]
[313011145,1706611841365,-1390.81,0.00034615,2]
[313011147,1706611841375,-191.95,0.00034813,2]
[313011149,1706611841385,-152.58,0.00034881,2]
[313011151,1706611841396,-702.47,0.00035069,2]
[313011153,1706611841406,-252.47,0.000352,2]
[313011155,1706611841417,-1362.0,0.00035397,2]
[313011156,1706611841427,-2431.0,0.00035397,2]
[313011157,1706611841437,-949.0,0.00035397,2]
[313011158,1706611841446,-1860.0,0.00035397,2]
[313011159,1706611841456,-519.523,0.00035397,2]
[313011160,1706611841466,-215.0,0.00035397,2]
[313011161,1706611841476,-314.532,0.00035397,2]
[313011162,1706611841487,-427.0,0.00035397,2]
[313011163,1706611841499,-1648.903,0.00035397,2]
[313011165,1706611841509,-998.0,0.00035397,2]
[313011167,1706611841520,-596.0,0.00035397,2]
[313011169,1706611841530,-236.0,0.00035397,2]
[313011171,1706611841541,-320.0,0.00035397,2]
[313011173,1706611841552,-487.014,0.00035397,2]
[313011174,1706611841562,-861.0,0.00035397,2]
[313011175,1706611841572,-150.0,0.00035397,2]
[313011176,1706611841583,-4189.0,0.00035397,2]
[313011177,1706611841592,-19763.0,0.00035397,2]
[313011178,1706611841602,-5598.0,0.00035397,2]
[313011179,1706611841612,-250.0,0.00035811,2]
[313011180,1706611841622,-1000.0,0.00035831,2]
[313011181,1706611841632,-1000.0,0.0003598,2]
[313011182,1706611841642,-191.95,0.00036002,2]
[313011183,1706611841652,-184.02,0.000361,3]
[313011184,1706611841664,-184.02,0.000361,3]
[313011185,1706611841674,-184.02,0.000361,3]
[313011186,1706611841684,-184.02,0.000361,3]
[313011187,1706611841694,-184.02,0.000361,3]
[313011188,1706611841704,-184.02,0.000361,3]
[313011189,1706611841714,-184.02,0.000361,3]
[313011190,1706611841724,-184.02,0.000361,3]
[313011191,1706611841735,-184.02,0.000361,3]
[313011192,1706611841991,-184.02,0.000361,3]
[313011193,1706611842002,-184.02,0.000361,3]
[313011194,1706611842011,-184.02,0.000361,3]
[313011195,1706611842021,-184.02,0.000361,3]
[313011196,1706611842031,-184.02,0.000361,3]
[313011197,1706611842040,-184.02,0.000361,3]
[313011198,1706611842049,-184.02,0.000361,3]
[313011199,1706611842059,-184.02,0.000361,3]
[313011200,1706611842067,-184.02,0.000361,3]
[313011201,1706611842077,-184.02,0.000361,3]
[313011202,1706611842088,-184.02,0.000361,3]
[313011203,1706611842098,-343.63516071,0.00036259,14]
[313011204,1706611842111,-1390.81,0.00036259,2]
[313011205,1706611842121,-702.47,0.00036277,2]
[313011206,1706611842130,-1565.99,0.00036463,2]
[313011207,1706611842139,-154.56,0.00036648,2]
[313011208,1706611842149,-989.71,0.00037137,2]
[313011209,1706611842158,-191.95,0.00037191,2]
[313011210,1706611842168,-1032.47,0.00037278,2]
[313011211,1706611842178,-150.0,0.00037453,2]
[313011212,1706611842187,-702.47,0.00037485,2]
[313011213,1706611842197,-1390.81,0.00037903,2]
[313011214,1706611842206,-150.0,0.00038356,15]
[313011215,1706611842215,-150.0,0.00038356,15]
[313011216,1706611842226,-150.0,0.00038356,15]
[313011217,1706611842236,-150.0,0.00038356,15]
[313011218,1706611842245,-150.0,0.00038356,15]
[313011219,1706611842254,-150.0,0.00038356,15]
[313011220,1706611842264,-150.0,0.00038356,15]
[313011221,1706611842274,-150.0,0.00038356,15]
[313011222,1706611842283,-150.0,0.00038356,15]
[313011223,1706611842292,-150.0,0.00038356,15]
[313011224,1706611842302,-150.0,0.00038356,15]
[313011225,1706611842311,-150.0,0.00038356,15]
[313011226,1706611842320,-150.0,0.00038356,15]
[313011227,1706611842329,-150.0,0.00038356,15]
[313011228,1706611842338,-150.0,0.00038356,15]
[313011229,1706611842347,-150.0,0.00038356,15]
[313011230,1706611842356,-150.0,0.00038356,15]
[313011231,1706611842365,-150.0,0.00038356,15]
[313011232,1706611842374,-150.0,0.00038356,15]
[313011233,1706611842384,-153.39062201,0.00038356,15]
[313011234,1706611842394,-191.95,0.00038381,2]
[313011235,1706611842404,-427.0,0.00038397,2]
[313011236,1706611842415,-150.0,0.00038397,2]
[313011237,1706611842425,-19573.41094159,0.000388,4]
[313011238,1706611842456,-1222.64934446,0.000388,4]
[313011239,1706611842471,-851.56,0.000388,4]
[313011247,1706611843452,-723.50238996,0.000388,4]
[313011248,1706611843465,-409.79455518,0.000388,4]
[313011250,1706611843477,-541.88479081,0.000388,4]
[313011252,1706611843493,-600.02619236,0.000388,4]
[313011255,1706611843508,-278.23520205,0.000388,4]
[313011256,1706611843520,-1088.59565023,0.000388,4]
[313011257,1706611843531,-1367.80188262,0.000388,4]
[313011258,1706611843549,-3441.87946865,0.000388,4]
[313011259,1706611843558,-343.06449962,0.0003888,2]
[313011260,1706611843568,-343.06449958,0.0003888,2]
[313011261,1706611843580,-343.06449958,0.0003888,2]
[313011262,1706611843590,-343.06449958,0.0003888,2]
[313011263,1706611843601,-282.70130916,0.0003898,2]
[313011264,1706611843611,-1432.18317414,0.00039,2]
[313011265,1706611843622,-154.56,0.00039336,2]
[313011266,1706611843633,-1390.81,0.00039547,2]
[313011267,1706611843643,-191.95,0.0003957,2]
[313011268,1706611843654,-343.06449958,0.00039678,2]
[313011269,1706611843668,-152.60302258,0.00039955,2]
[313011270,1706611843678,-434.66039764,0.00039955,2]
[313011271,1706611843688,-570.51160774,0.0004,4]
[313011272,1706611843698,-713.38117008,0.0004,30]
[313011273,1706611843708,-1002.33122238,0.0004,2]
[313011274,1706611843718,-156.90435776,0.00040273,2]
[313011275,1706611843727,-28211.10157929,0.00040373,19]
[313011276,1706611843737,-21328.93081493,0.00040373,19]
[313011277,1706611843746,-500.98784192,0.00040377,5]
[313011278,1706611843756,-15740.92212508,0.00040452,19]
[313011279,1706611843766,-1000.0,0.00040477,2]
[313011280,1706611843775,-184.02,0.000407,4]
[313011281,1706611843785,-184.02,0.000407,4]
[313011282,1706611843795,-184.02,0.000407,4]
[313011283,1706611843805,-184.02,0.000407,4]
[313011284,1706611843815,-184.02,0.000407,4]
[313011285,1706611843825,-184.02,0.000407,4]
[313011286,1706611843834,-184.02,0.000407,4]
[313011287,1706611843844,-184.02,0.000407,4]
[313011288,1706611843853,-184.02,0.000407,4]
[313011289,1706611843864,-184.02,0.000407,4]
[313011290,1706611843873,-184.02,0.000407,4]
[313011291,1706611843883,-184.02,0.000407,4]
[313011292,1706611843893,-184.02,0.000407,4]
[313011293,1706611843903,-184.02,0.000407,4]
[313011294,1706611843913,-184.02,0.000407,4]
[313011295,1706611843923,-184.02,0.000407,4]
[313011296,1706611843933,-184.02,0.000407,4]
[313011297,1706611843943,-184.02,0.000407,4]
[313011298,1706611843953,-184.02,0.000407,4]
[313011299,1706611843963,-184.02,0.000407,4]
[313011300,1706611843972,-191.95,0.00040759,2]
[313011301,1706611843982,-1035.0,0.00041,11]
[313011302,1706611843992,-500.98784187,0.00041033,5]
[313011303,1706611844002,-1014.81610762,0.00041056,13]
[313011304,1706611844011,-12821.10546122,0.00041076,7]
[313011305,1706611844033,-1192.9975616,0.00041076,7]
[313011306,1706611844045,-5512.38230237,0.00041076,7]
[313011307,1706611844067,-58180.57070421,0.00041076,7]
[313011308,1706611844076,-77707.0560294,0.00041086,7]
[313011309,1706611844086,-166.76766472,0.00041093,2]
[313011310,1706611844096,-31277.6176637,0.00041096,2]
[313011311,1706611844108,-3836.58217196,0.00041096,2]
[313011320,1706611847385,-568.17905862,0.00037377,4]
[313011321,1706611847397,-736.19737716,0.00037377,4]
[313011322,1706611847444,-855.42524507,0.00037377,4]
[313011323,1706611847456,-14076.65178522,0.00037377,4]
[313011324,1706611847466,-900.14,0.00037378,2]
[313011325,1706611847475,-900.14,0.00039247,2]
[313011326,1706611847485,-5401.56821478,0.00041096,2]
[313011327,1706611847537,-652.38094598,0.00041096,2]
[313011328,1706611847553,-2829.1977,0.00041096,2]
[313011329,1706611847564,-1461.814397,0.00041096,2]
[313011330,1706611847576,-86918.40000015,0.00041096,2]
[313011331,1706611847588,-520.27750325,0.00041096,2]
[313011332,1706611847617,-1467.87505136,0.00041096,2]
[313011333,1706611891922,1196.56576628,0.00023141,7]
[313011334,1706611905434,587.96777916,0.00020698,5]
[313011362,1706612215552,150.0,0.00022,2]
[313011363,1706612316517,167.29,0.0002237,2]
[313011364,1706612350021,250.0,0.00022426,2]
[313011365,1706612380673,163.76,0.00022411,2]
[313011366,1706612440196,2000.0,0.00022389,2]
[313011367,1706612495791,496.98,0.00022389,2]
[313011368,1706612496303,1972.91,0.00022389,2]
[313011369,1706612496511,247.58,0.00022389,2]
[313011370,1706612508331,234.8,0.00020471,2]
[313011371,1706612576047,825.16,0.00022248,2]
[313011372,1706612595631,3206.1714372,0.00021752,2]
[313011373,1706612599220,150.0,0.00022248,2]
[313011374,1706612610665,250.0,0.00022291,2]
[313011386,1706612654434,1369.02,0.0002225,2]
[313011387,1706612699092,500.0,0.00024,7]
[313011388,1706612773427,1102.26,0.00022116,2]
[313011392,1706612812118,-283.13009794,0.000226,2]
[313011393,1706612834309,250.0,0.00021977,2]
[313011394,1706612836000,150.0,0.00022,2]
[313011395,1706612839576,353.38,0.00022,2]
[313011396,1706612840092,-216.86990206,0.000226,2]
[313011397,1706612840111,-500.0,0.000226,3]
[313011398,1706612840133,-1871.47792029,0.00022685,2]
[313011399,1706612845031,155.46,0.0002226,2]
[313011400,1706612845213,155.46,0.00022349,2]
[313011401,1706612845480,155.46,0.00022439,2]
[313011402,1706612847273,540.08,0.0002195,2]
[313011403,1706612901667,456.49852586,0.00021629,2]
[313011404,1706612918312,1463.68,0.00021864,2]
[313011405,1706612933692,215.86,0.00021864,2]
[313011406,1706612945096,-432.59,0.00022524,2]
[313011407,1706612970611,223.06,0.00019971,2]
[313011408,1706612970810,223.06,0.00022235,2]
[313011409,1706613018070,817.07,0.00021872,2]
[313011410,1706613032005,-279.99555119,0.00022521,2]
[313011411,1706613032015,-2954.07099699,0.00022522,2]
[313011412,1706613032025,-533.56145808,0.00022523,2]
[313011413,1706613032035,-155.46,0.00022528,2]
[313011414,1706613032043,-451.05264473,0.00022542,2]
[313011415,1706613032055,-1326.90572338,0.00022542,2]
[313011416,1706613032117,-1711.99249184,0.00022542,2]
[313011417,1706613032128,-7958.04914005,0.00022542,2]
[313011418,1706613032137,-155.46,0.00022617,2]
[313011419,1706613032146,-3580.97023092,0.00022685,2]
[313011420,1706613032157,-150.0,0.00022696,2]
[313011421,1706613032166,-150.0,0.00022696,2]
[313011422,1706613032175,-25576.99277161,0.00022696,2]
[313011423,1706613032235,-1194.05,0.00022696,2]
[313011424,1706613032246,-535.37065222,0.00022696,2]
[313011425,1706613032258,-384.3878097,0.00022696,2]
[313011468,1706613038004,-323.17875603,0.00022696,2]
[313011469,1706613038017,-25502.4588747,0.00022696,2]
[313011470,1706613038032,-25556.10247485,0.00022696,2]
[313011471,1706613038116,-50610.78953797,0.00022696,2]
[313011472,1706613038128,-8839.0942357,0.00022697,2]
[313011473,1706613038140,-6221.1538,0.00022698,2]
[313011474,1706613038153,-267.44774941,0.00022699,2]
[313011475,1706613038164,-323.89,0.00022699,2]
[313011476,1706613038175,-155.46,0.00022706,2]